bitfinex-derivatives/quotes_SOLF0:USTF0_20250901
["timestamp","ask_amount","ask_price","bid_price","bid_amount"]
[1756733073795,125.92,200.88,200.78,2.77945331]
[1756733073999,0.08,200.87,200.78,2.77945331]
[1756733076296,0.03211395,200.85,200.78,2.77945331]
[1756733076695,0.08,200.84,200.76,7.51]
[1756733079395,0.08,200.82,200.72,8.01]
[1756733079596,125.6,200.81,200.72,8.01]
[1756733080099,125.6,200.81,200.72,12.15782034]
[1756733080393,125.6,200.81,200.73,12.15782034]
[1756733081201,0.03458274,200.79,200.73,12.15782034]
[1756733082103,0.03458274,200.79,200.75,8.01]
[1756733082601,0.03458274,200.79,200.75,2.77945331]
[1756733082899,0.03458274,200.79,200.76,8.01]
[1756733083596,0.03458274,200.79,200.75,2.77945331]
[1756733084101,0.03458274,200.79,200.75,10.78945331]
[1756733084403,0.03458274,200.79,200.76,8.01]
[1756733084598,0.03458274,200.79,200.75,2.77945331]
[1756733085000,0.03458274,200.79,200.76,8.01]
[1756733085201,0.03458274,200.79,200.75,2.77945331]
[1756733085399,0.03458274,200.79,200.76,8.01]
[1756733085600,0.03458274,200.79,200.75,2.77945331]
[1756733085802,0.03458274,200.79,200.76,8.01]
[1756733086198,0.03458274,200.79,200.75,2.77945331]
[1756733086394,0.03458274,200.79,200.76,8.01]
[1756733086599,0.03458274,200.79,200.75,2.77945331]
[1756733086794,0.03458274,200.79,200.76,8.01]
[1756733086999,0.03458274,200.79,200.75,2.77945331]
[1756733087195,0.03458274,200.79,200.76,8.01]
[1756733087804,0.03458274,200.79,200.75,2.77945331]
[1756733088297,0.03458274,200.79,200.76,8.01]
[1756733088502,0.03458274,200.79,200.75,2.77945331]
[1756733088697,0.03458274,200.79,200.76,8.01]
[1756733093615,0.03458274,200.79,200.73,4.14782034]
[1756733093913,0.03458274,200.79,200.72,10.78945331]
[1756733093914,0.03458274,200.79,200.72,8.01]
[1756733099115,35.07458274,200.79,200.72,8.01]
[1756733099719,0.03458274,200.79,200.72,8.01]
[1756733101020,102.69458274,200.79,200.72,8.01]
[1756733101722,2.86945331,200.76,200.68,12.15782034]
[1756733102720,0.03329441,200.74,200.68,8.01]
[1756733105718,0.09,200.73,200.66,4.14782034]
[1756733105917,0.09,200.72,200.65,8.01]
[1756733106317,6.36,200.71,200.65,8.01]
[1756733106719,0.03329441,200.74,200.65,8.01]
[1756733107121,2.34013415,200.73,200.67,2.77945331]
[1756733107325,2.34013415,200.72,200.68,8.01]
[1756733107620,0.03329441,200.74,200.72,8.01]
[1756733107922,2.33961639,200.73,200.72,7.84]
[1756733108622,0.03134265,200.75,200.72,8.34]
[1756733108821,0.03134265,200.75,200.72,7.84]
[1756733109018,0.03134265,200.75,200.71,2.77945331]
[1756733109218,0.03134265,200.75,200.72,7.84]
[1756733109420,0.03134265,200.75,200.71,2.77945331]
[1756733109718,0.03134265,200.75,200.72,7.84]
[1756733110021,0.03134265,200.75,200.71,2.77945331]
[1756733110423,0.03134265,200.75,200.72,7.84]
[1756733111118,0.03134265,200.75,200.71,2.77945331]
[1756733111317,0.03134265,200.75,200.72,7.84]
[1756733111520,2.44134265,200.75,200.68,4.18190717]
[1756733111720,2.41,200.73,200.65,4.18190717]
[1756733111919,2.41,200.7,200.6,12.02190717]
[1756733112222,2.77945331,200.68,200.6,7.84]
[1756733112420,2.41,200.7,200.61,7.84]
[1756733112620,2.41,200.75,200.64,7.84]
[1756733112819,460.34,200.76,200.66,2.77945331]
[1756733113019,334.84,200.76,200.7,7.84]
[1756733113419,0.03245033,200.73,200.66,4.18190717]
[1756733113621,0.03245033,200.73,200.7,2.77945331]
[1756733113820,0.03245033,200.73,200.71,7.84]
[1756733114220,0.03245033,200.73,200.7,2.77945331]
[1756733114423,2.41,200.84,200.71,7.84]
[1756733114624,125.5,200.83,200.76,7.84]
[1756733115026,334.86,200.87,200.76,7.84]
[1756733115326,125.48,200.86,200.76,7.84]
[1756733115717,2.45,200.85,200.79,0.03437256]
[1756733115921,2.45,200.9,200.79,7.87437256]
[1756733116123,125.48,200.89,200.79,7.87437256]
[1756733116829,2.45,200.94,200.82,7.84]
[1756733117022,5.22945331,200.92,200.82,7.84]
[1756733117524,5.22945331,200.92,200.85,0.03135562]
[1756733117928,2.77945331,200.89,200.85,0.03135562]
[1756733118431,125.48,200.93,200.85,0.03135562]
[1756733118432,5.22945331,200.86,200.85,0.03135562]
[1756733118632,130.70945331,200.86,200.85,0.03135562]
[1756733119928,131.20945331,200.86,200.85,0.03135562]
[1756733122632,2.45,200.85,200.74,7.84]
[1756733122832,2.77945331,200.8,200.74,7.84]
[1756733123030,125.46,200.79,200.68,2.77945331]
[1756733123229,125.46,200.79,200.69,7.84]
[1756733123429,2.77945331,200.8,200.69,7.84]
[1756733123726,6.16,200.79,200.69,7.84]
[1756733123941,0.03196061,200.77,200.69,7.84]
[1756733124442,0.03196061,200.77,200.69,12.3239]
[1756733124638,0.03196061,200.77,200.69,7.84]
[1756733124840,0.03196061,200.77,200.75,7.84]
[1756733125045,2.45,200.88,200.75,7.84]
[1756733125046,1.12,200.84,200.75,7.84]
[1756733126639,1.12,200.84,200.77,0.03445518]
[1756733127243,3.89945331,200.84,200.77,0.03445518]
[1756733128744,2.77945331,200.81,200.77,0.03445518]
[1756733128948,2.48,200.8,200.77,0.03445518]
[1756733129150,2.77945331,200.84,200.77,7.87445518]
[1756733129337,10.42,200.82,200.77,7.87445518]
[1756733129646,12.9,200.82,200.77,7.87445518]
[1756733129847,10.42,200.82,200.78,7.84]
[1756733130147,12.9,200.82,200.77,7.87445518]
[1756733130945,2.48,200.81,200.77,0.03445518]
[1756733131141,2.77945331,200.81,200.77,0.03445518]
[1756733131537,2.48,200.8,200.77,0.03445518]
[1756733131737,5.25945331,200.88,200.78,7.84]
[1756733132043,125.46,200.87,200.78,7.84]
[1756733132243,2.48,200.86,200.77,0.03445518]
[1756733132444,5.25945331,200.86,200.77,7.87445518]
[1756733135851,334.78,200.91,200.78,4.4821]
[1756733136047,125.44,200.9,200.8,2.77945331]
[1756733136545,125.44,200.9,200.83,0.03500662]
[1756733136750,125.44,200.9,200.84,7.84]
[1756733137357,125.44,200.9,200.83,0.03500662]
[1756733139659,2.48,200.89,200.83,0.03500662]
[1756733140062,125.42,200.88,200.84,7.43]
[1756733140359,127.9,200.88,200.83,7.46500662]
[1756733141262,125.42,200.88,200.84,7.43]
[1756733141557,125.42,200.88,200.83,0.03500662]
[1756733141758,125.42,200.9,200.84,7.43]
[1756733142358,125.42,200.9,200.84,10.20945331]
[1756733143458,2.48,200.96,200.88,7.43]
[1756733143766,125.42,200.95,200.88,7.43]
[1756733144057,125.42,200.95,200.91,7.43]
[1756733144259,125.42,200.95,200.89,0.03287156]
[1756733144458,2.48,200.94,200.89,0.03287156]
[1756733144653,2.48,200.94,200.85,11.9104]
[1756733145062,127.9,200.95,200.89,0.03324052]
[1756733147362,2.48,200.92,200.89,0.03324052]
[1756733147663,2.77945331,200.94,200.89,0.03324052]
[1756733148164,2.48,200.93,200.89,0.03324052]
[1756733148362,2.77945331,200.94,200.89,0.03324052]
[1756733149455,2.48,200.93,200.89,0.03324052]
[1756733149961,2.77945331,200.94,200.89,0.03324052]
[1756733150155,2.48,200.93,200.89,0.03324052]
[1756733150358,2.77945331,200.94,200.89,0.03324052]
[1756733150754,2.48,200.93,200.89,0.03324052]
[1756733150954,2.77945331,200.94,200.89,0.03324052]
[1756733151459,2.48,200.93,200.89,0.03324052]
[1756733151865,2.77945331,200.94,200.89,0.03324052]
[1756733152963,2.48,200.93,200.89,0.03324052]
[1756733153161,2.77945331,200.94,200.89,0.03324052]
[1756733153359,2.48,200.93,200.89,0.03324052]
[1756733153561,2.77945331,200.94,200.89,0.03324052]
[1756733153761,2.48,200.93,200.89,0.03324052]
[1756733153964,2.48,200.98,200.9,7.43]
[1756733154268,127.86,200.98,200.9,7.43]
[1756733154967,127.86,200.98,200.92,0.03454925]
[1756733157171,2.48,201.02,200.92,0.03454925]
[1756733157477,127.84,201.02,200.93,7.43]
[1756733157765,127.84,201.02,200.95,7.43]
[1756733158469,127.84,201.02,200.96,4.51020904]
[1756733158866,334.72,201.03,200.96,0.03220904]
[1756733159170,460.06,201.03,200.96,0.03220904]
[1756733159770,460.06,201.03,200.98,11.9075]
[1756733159969,462.52,201.03,200.98,11.9075]
[1756733160267,2.46,201.02,200.98,7.43]
[1756733160870,2.77945331,201.11,200.98,7.43]
[1756733161071,127.78,201.1,200.98,7.43]
[1756733161272,125.32,201.09,201.0,2.77945331]
[1756733161467,2.46,201.08,200.99,4.4773]
[1756733161672,2.46,201.08,201.02,0.03674638]
[1756733167879,125.32,201.09,201.02,12.26334638]
[1756733168475,125.32,201.09,201.02,7.78674638]
[1756733169371,127.75,201.11,201.02,7.78674638]
[1756733171984,127.73,201.11,201.02,7.78674638]
[1756733173392,2.47,201.11,201.04,2.77945331]
[1756733173693,2.47,201.11,201.05,7.75]
[1756733174193,2.47,201.15,201.05,7.75]
[1756733175093,2.47,201.15,201.08,0.03138839]
[1756733175586,2.47,201.15,201.08,2.8108417]
[1756733175789,2.47,201.15,201.08,0.03138839]
[1756733176194,2.47,201.15,201.08,4.50668839]
[1756733176395,2.47,201.15,201.08,0.03138839]
[1756733176596,125.22,201.14,201.08,0.03138839]
[1756733178396,125.22,201.14,201.08,4.50668839]
[1756733179188,2.47,201.13,201.08,0.03138839]
[1756733179798,127.69,201.14,201.08,0.03138839]
[1756733179993,2.47,201.14,201.08,0.03138839]
[1756733180195,2.47,201.12,201.08,0.03138839]
[1756733180395,125.2,201.13,201.08,0.03138839]
[1756733180695,2.47,201.12,201.08,0.03138839]
[1756733181093,125.2,201.13,201.08,0.03138839]
[1756733181594,2.47,201.12,201.08,7.78138839]
[1756733181995,2.47,201.12,201.08,0.03138839]
[1756733182198,127.67,201.12,201.08,0.03138839]
[1756733182397,125.2,201.12,201.08,0.03138839]
[1756733182597,2.47,201.1,201.08,0.03138839]
[1756733183297,125.18,201.11,201.08,0.03138839]
[1756733183892,2.47,201.1,201.08,0.03138839]
[1756733184495,2.44,201.08,200.96,7.75]
[1756733184698,128.82526495,201.11,200.96,7.75]
[1756733184699,2.44,201.06,200.96,7.75]
[1756733184899,50.22,201.05,200.96,7.75]
[1756733185098,50.22,201.05,200.99,4.4773]
[1756733185799,50.22,201.05,200.97,2.77945331]
[1756733186196,50.22,201.05,200.97,4.4777]
[1756733186503,2.44,201.04,200.96,7.75]
[1756733187202,2.44,201.01,200.9,2.77945331]
[1756733187900,2.44,201.01,200.91,7.75]
[1756733188300,14.0,201.01,200.93,2.77945331]
[1756733188800,14.0,201.01,200.96,4.478]
[1756733189102,14.0,201.01,200.91,7.75]
[1756733189103,2.44,201.0,200.91,7.75]
[1756733189403,18.72,201.0,200.92,2.77945331]
[1756733189902,18.72,201.0,200.91,7.75]
[1756733189903,2.44,201.0,200.91,7.75]
[1756733190300,25.02,200.99,200.92,2.77945331]
[1756733190598,0.86581164,201.11,200.99,7.75]
[1756733190796,0.86581164,201.11,200.98,2.77945331]
[1756733190797,2.44,201.14,201.06,2.77945331]
[1756733191199,0.03724632,201.12,201.05,7.75]
[1756733191602,0.03724632,201.12,201.08,4.4753]
[1756733191802,2.47724632,201.12,201.08,4.4753]
[1756733192005,0.03724632,201.12,201.08,12.2253]
[1756733193197,0.03724632,201.12,201.07,2.77945331]
[1756733193403,0.03724632,201.12,201.11,7.75]
[1756733193795,0.03724632,201.12,201.11,12.2248]
[1756733194199,0.03724632,201.12,201.1,2.77945331]
[1756733195204,0.03724632,201.12,201.11,7.75]
[1756733196806,0.03724632,201.12,201.11,10.52945331]
[1756733197106,2.44,201.2,201.11,11.02945331]
[1756733197304,2.44,201.2,201.15,10.52945331]
[1756733197808,2.44,201.2,201.15,7.75]
[1756733198304,2.77945331,201.19,201.06,2.77945331]
[1756733198609,2.43,201.2,201.15,0.03628796]
[1756733198812,2.43,201.2,201.09,2.77945331]
[1756733199107,2.77945331,201.19,201.15,0.0340876]
[1756733199306,2.43,201.2,200.74,1753.8]
[1756733199307,2.4,201.12,201.04,2.77945331]
[1756733199509,2.4,201.12,201.04,10.57945331]
[1756733199710,2.4,201.12,201.05,4.4761]
[1756733199912,2.4,201.12,201.04,7.8]
[1756733200105,2.77945331,201.11,200.99,7.8]
[1756733200311,2.77945331,201.11,201.02,4.4768]
[1756733200509,2.4,201.12,200.99,7.8]
[1756733200510,0.03350874,201.06,200.99,7.8]
[1756733202109,0.03350874,201.06,200.99,12.2772]
[1756733202307,0.03350874,201.06,200.99,7.8]
[1756733202509,0.03350874,201.06,201.01,4.4768]
[1756733203111,0.03350874,201.06,201.02,4.4766]
[1756733203413,0.03350874,201.06,200.97,7.8]
[1756733204310,0.03350874,201.06,201.05,4.4761]
[1756733204511,0.03350874,201.06,200.97,7.8]
[1756733206311,0.03350874,201.06,200.98,4.4775]
[1756733207317,0.03350874,201.06,200.97,7.8]
[1756733207616,2.4,201.05,200.97,7.8]
[1756733208615,334.26,201.16,200.92,4.436188]
[1756733208816,2.43,201.16,201.04,7.8]
[1756733209021,2.43,201.16,201.04,12.236188]
[1756733209225,2.43,201.16,201.07,4.4756]
[1756733209419,2.43,201.16,201.07,12.2756]
[1756733209611,2.43,201.16,201.07,7.8]
[1756733210018,2.43,201.16,201.09,0.03789122]
[1756733210319,2.43,201.19,201.09,0.03789122]
[1756733215125,2.43,201.16,201.09,0.03789122]
[1756733216827,2.43,201.23,201.1,7.8]
[1756733217021,58.72,201.22,201.1,7.8]
[1756733217327,58.72,201.22,201.1,12.236188]
[1756733217624,58.72,201.22,201.13,0.03349942]
[1756733218025,58.72,201.22,201.14,7.8]
[1756733219027,104.57,201.23,201.14,7.8]
[1756733219220,126.9,201.22,201.14,7.8]
[1756733220524,2.43,201.23,201.14,12.2739]
[1756733220725,336.75,201.27,201.14,7.8]
[1756733220922,126.82,201.26,201.14,7.8]
[1756733221434,2.45,201.25,201.18,0.03436357]
[1756733222128,2.45,201.23,201.18,0.03436357]
[1756733222722,4.436188,201.24,201.18,0.03436357]
[1756733223123,2.45,201.23,201.18,0.03436357]
[1756733223725,4.436188,201.24,201.18,0.03436357]
[1756733224025,2.45,201.23,201.18,0.03436357]
[1756733224236,4.436188,201.24,201.18,0.03436357]
[1756733224626,2.45,201.24,201.18,0.03436357]
[1756733224827,339.60138615,201.27,201.18,0.03436357]
[1756733224828,129.29,201.23,201.18,0.03436357]
[1756733225224,2.45,201.22,201.18,0.03436357]
[1756733225524,126.84,201.23,201.18,0.03436357]
[1756733226030,2.45,201.22,201.18,0.03436357]
[1756733226229,131.276188,201.23,201.18,0.03436357]
[1756733226430,2.45,201.22,201.18,0.03436357]
[1756733226635,126.84,201.23,201.18,0.03436357]
[1756733226835,4.436188,201.22,201.18,0.03436357]
[1756733227036,4.436188,201.25,201.18,0.03436357]
[1756733227231,129.21,201.24,201.18,0.03436357]
[1756733227833,4.436188,201.22,201.18,0.03436357]
[1756733228036,2.43,201.21,201.18,0.03436357]
[1756733228532,4.436188,201.22,201.18,0.03436357]
[1756733228836,4.936188,201.22,201.18,0.03436357]
[1756733229038,2.43,201.18,201.0,7.7]
[1756733229237,6.866188,201.16,201.03,4.4765]
[1756733229541,18.34,201.15,201.04,7.7]
[1756733230025,2.43,201.14,201.04,7.7]
[1756733230225,2.43,201.12,200.97,7.7]
[1756733230835,14.95,201.23,201.0,7.7]
[1756733231031,4.436188,201.16,201.0,7.7]
[1756733231234,2.43,201.14,201.0,7.7]
[1756733231530,2.43,201.12,201.01,4.477]
[1756733231932,4.436188,201.1,201.0,7.7]
[1756733232135,2.43,201.09,201.0,7.7]
[1756733232343,23.0,201.08,201.0,7.7]
[1756733234138,25.58,201.09,201.0,7.7]
[1756733234635,25.16,201.09,201.0,7.7]
[1756733234829,25.16,201.09,201.01,4.4769]
[1756733235031,25.16,201.09,201.02,7.7]
[1756733235234,2.43,201.14,201.02,7.7]
[1756733235433,9.64,201.13,201.04,7.7]
[1756733236038,4.436188,201.2,201.06,7.7]
[1756733236241,2.43,201.18,201.06,7.7]
[1756733236437,117.66,201.17,201.06,7.7]
[1756733237235,2.43,201.18,201.06,7.7]
[1756733237642,51.06,201.17,201.06,7.7]
[1756733237843,0.03305364,201.14,201.06,7.7]
[1756733239633,0.03305364,201.14,201.08,7.7]
[1756733241638,0.03305364,201.14,201.02,4.436188]
[1756733241835,0.03305364,201.14,201.03,7.7]
[1756733242347,10.13305364,201.14,201.03,7.7]
[1756733244652,17.5,201.13,201.03,7.7]
[1756733246850,2.43,201.12,201.03,7.7]
[1756733247550,0.03348352,201.1,201.03,7.7]
[1756733249048,101.01348352,201.1,201.03,7.7]
[1756733249348,0.03348352,201.1,201.03,7.7]
[1756733250246,0.03348352,201.1,201.05,7.7]
[1756733250647,2.43,201.17,201.05,7.7]
[1756733250648,126.84,201.16,201.06,7.7]
[1756733251045,0.03221257,201.1,201.05,7.7]
[1756733251243,0.03221257,201.1,201.07,7.7]
[1756733251845,0.03221257,201.1,201.06,4.4757]
[1756733252147,0.03221257,201.1,201.07,7.7]
[1756733253049,0.03221257,201.1,201.01,4.11052829]
[1756733253254,0.03221257,201.1,201.02,7.7]
[1756733253746,2.43,201.13,201.02,7.7]
[1756733253947,0.03528167,201.08,201.02,7.7]
[1756733254552,0.03528167,201.08,201.02,12.1766]
[1756733255356,0.03528167,201.08,201.02,7.7]
[1756733256758,2.43,201.07,200.97,7.7]
[1756733257552,11.82,201.06,200.97,7.7]
[1756733258353,0.03678159,201.04,200.97,7.7]
[1756733259658,0.03678159,201.04,200.97,12.136188]
[1756733259960,0.03678159,201.04,200.98,7.39]
[1756733260452,0.03678159,201.04,200.97,4.436188]
[1756733260453,0.03678159,201.04,201.0,7.39]
[1756733260654,0.03678159,201.04,200.99,4.4773]
[1756733260854,0.03678159,201.04,200.98,7.39]
[1756733262961,0.03678159,201.04,200.98,11.8675]
[1756733263158,2.48,201.22,201.02,7.39]
[1756733263358,6.02,201.21,201.08,7.39]
[1756733263860,10.456188,201.21,201.08,11.8653]
[1756733264059,2.48,201.2,201.08,11.8653]
[1756733264464,2.48,201.2,201.12,0.03416148]
[1756733265156,4.436188,201.25,201.12,7.42416148]
[1756733265460,58.68,201.24,201.12,7.42416148]
[1756733265659,58.68,201.24,201.12,7.39]
[1756733265859,58.68,201.24,201.16,0.03677562]
[1756733266364,2.48,201.25,201.16,0.03677562]
[1756733266365,118.0,201.23,201.16,0.03677562]
[1756733266863,130.9,201.22,201.16,0.03677562]
[1756733270062,4.436188,201.19,201.16,0.03677562]
[1756733270269,2.48,201.18,201.16,0.03677562]
[1756733270666,4.436188,201.19,201.16,0.03677562]
[1756733270862,2.48,201.18,201.16,0.03677562]
[1756733271062,4.436188,201.19,201.16,0.03677562]
[1756733271672,2.48,201.18,201.16,0.03677562]
[1756733272167,4.436188,201.19,201.16,0.03677562]
[1756733272369,2.48,201.18,201.16,0.03677562]
[1756733272568,4.436188,201.19,201.16,0.03677562]
[1756733273569,2.48,201.18,201.16,0.03677562]
[1756733273974,59.66,201.19,201.16,0.03677562]
[1756733275276,2.48,201.18,201.16,0.03677562]
[1756733275481,59.66,201.19,201.16,0.03677562]
[1756733275974,2.48,201.18,201.16,0.03677562]
[1756733276170,2.46,201.18,201.16,0.03677562]
[1756733276370,116.22,201.17,201.16,0.03677562]
[1756733277082,2.46,201.2,201.16,0.03677562]
[1756733277380,65.58,201.19,201.16,0.03677562]
[1756733279879,2.46,201.2,201.16,0.03677562]
[1756733280482,67.92,201.21,201.16,0.03677562]
[1756733280680,2.46,201.2,201.16,0.03677562]
[1756733280880,67.92,201.21,201.16,0.03677562]
[1756733281280,2.46,201.2,201.16,0.03677562]
[1756733282586,127.88,201.21,201.16,0.03677562]
[1756733282783,2.46,201.2,201.16,0.03677562]
[1756733283287,2.46,201.21,201.16,0.03677562]
[1756733283587,130.3,201.22,201.16,0.03677562]
[1756733283790,134.736188,201.22,201.16,0.03677562]
[1756733285984,134.736188,201.22,201.09,7.39]
[1756733285985,4.436188,201.19,201.01,7.39]
[1756733286183,6.856188,201.13,201.01,7.39]
[1756733286384,68.44,201.12,201.01,7.39]
[1756733287183,0.03402675,201.09,201.01,7.39]
[1756733290478,11.3,201.08,201.01,7.39]
[1756733292387,19.2,201.08,201.01,7.39]
[1756733293184,0.03402675,201.09,201.01,7.39]
[1756733293384,22.35402675,201.09,201.01,7.39]
[1756733294184,0.03402675,201.09,201.01,7.39]
[1756733294987,0.03402675,201.09,201.01,11.8669]
[1756733295286,0.03402675,201.09,201.01,4.4769]
[1756733295588,0.03402675,201.09,201.02,7.69]
[1756733295984,0.03402675,201.09,201.02,12.1666]
[1756733296185,0.03402675,201.09,201.03,7.69]
[1756733296690,0.03402675,201.09,201.06,7.69]
[1756733296887,873.2,201.26,201.07,0.5]
[1756733297193,4.436188,201.24,201.09,7.69]
[1756733297685,2.46,201.23,201.09,7.69]
[1756733297991,127.12,201.23,201.09,7.69]
[1756733298193,127.12,201.23,201.14,0.03805283]
[1756733298387,2.46,201.23,201.14,0.03805283]
[1756733298587,127.46,201.22,201.14,0.03805283]
[1756733299192,127.42,201.21,201.14,0.03805283]
[1756733300290,127.42,201.2,201.14,0.03805283]
[1756733301192,129.88,201.2,201.14,0.03805283]
[1756733301989,6.896188,201.15,201.06,7.69]
[1756733302990,2.46,201.15,201.06,7.69]
[1756733303289,0.03154007,201.13,201.06,7.69]
[1756733308297,0.03154007,201.13,201.01,4.477]
[1756733308298,0.03154007,201.13,201.01,7.69]
[1756733309394,2.46,201.12,201.01,7.69]
[1756733309594,6.896188,201.12,201.01,7.69]
[1756733310096,0.03373468,201.09,201.01,7.69]
[1756733311699,0.03373468,201.09,201.01,12.1669]
[1756733312504,0.03373468,201.09,201.01,7.69]
[1756733313904,2.49373468,201.09,201.01,7.69]
[1756733316005,2.49373468,201.09,200.97,4.4778]
[1756733316205,2.49373468,201.09,200.98,7.69]
[1756733317105,48.96,201.08,200.98,7.69]
[1756733317708,94.84,201.07,200.98,7.69]
[1756733318404,0.03255049,201.05,200.98,7.69]
[1756733319698,0.03255049,201.05,201.01,7.71]
[1756733320103,47.09238389,201.13,201.01,7.71]
[1756733320505,0.03455602,201.05,201.01,7.71]
[1756733320699,0.03455602,201.05,201.0,7.24948389]
[1756733320900,0.03455602,201.05,201.01,7.71]
[1756733321908,0.03455602,201.05,201.0,2.77238389]
[1756733322110,0.03455602,201.05,201.01,7.71]
[1756733322406,0.03455602,201.05,201.0,2.77238389]
[1756733323306,0.03455602,201.05,201.01,7.71]
[1756733323706,0.03455602,201.05,201.0,2.77238389]
[1756733324209,0.03455602,201.05,201.0,7.71]
[1756733324411,0.03455602,201.05,201.0,2.77238389]
[1756733324610,0.03455602,201.05,201.01,7.71]
[1756733324811,0.03455602,201.05,201.0,2.77238389]
[1756733325110,0.03455602,201.05,201.01,7.71]
[1756733325310,0.03455602,201.05,201.0,2.77238389]
[1756733325506,0.03455602,201.05,201.01,7.71]
[1756733326109,0.03455602,201.05,201.0,2.77238389]
[1756733326304,2.48,201.14,201.03,2.77238389]
[1756733326513,129.02,201.14,201.04,7.71]
[1756733326711,129.02,201.14,201.06,2.77238389]
[1756733326912,129.02,201.14,201.07,7.71]
[1756733327809,129.02,201.14,201.08,0.03721647]
[1756733331116,131.79238389,201.14,201.08,0.03721647]
[1756733332011,5.25238389,201.14,201.08,0.03721647]
[1756733332218,128.85,201.13,201.08,0.03721647]
[1756733332516,2.51,201.12,201.08,0.03721647]
[1756733333513,126.34,201.13,201.08,0.03721647]
[1756733333706,2.51,201.12,201.08,0.03721647]
[1756733333913,126.34,201.13,201.08,0.03721647]
[1756733334313,2.51,201.12,201.08,0.03721647]
[1756733335817,126.34,201.13,201.08,0.03721647]
[1756733336013,2.5,201.12,201.08,0.03721647]
[1756733336809,126.34,201.13,201.08,0.03721647]
[1756733337116,2.5,201.12,201.08,0.03721647]
[1756733337316,126.08,201.12,201.08,0.03721647]
[1756733337518,128.58,201.12,201.08,0.03721647]
[1756733338517,126.08,201.12,201.08,0.03721647]
[1756733338714,2.5,201.11,201.08,0.03721647]
[1756733339016,125.96,201.14,201.08,7.74721647]
[1756733341211,2.5,201.25,201.08,7.74721647]
[1756733341515,8.36064248,201.3,201.08,7.74721647]
[1756733341516,2.5,201.18,201.09,7.71]
[1756733342014,2.77238389,201.19,201.14,0.03781971]
[1756733342213,2.5,201.18,201.14,0.03781971]
[1756733342414,2.5,201.18,201.14,7.74781971]
[1756733343021,2.5,201.18,201.14,0.03781971]
[1756733345121,2.77238389,201.22,201.14,0.03781971]
[1756733345122,2.5,201.21,201.14,0.03781971]
[1756733346222,2.77238389,201.2,201.14,0.03781971]
[1756733346424,2.5,201.19,201.14,0.03781971]
[1756733346619,2.77238389,201.2,201.14,0.03781971]
[1756733346819,2.5,201.23,201.14,0.03781971]
[1756733347020,2.77238389,201.2,201.14,0.03781971]
[1756733347718,2.77238389,201.22,201.14,0.03781971]
[1756733347919,2.49,201.21,201.14,0.03781971]
[1756733350228,2.77238389,201.19,201.14,0.03781971]
[1756733350421,2.49,201.18,201.14,0.03781971]
[1756733352222,2.49,201.15,201.14,0.03781971]
[1756733352417,62.65,201.15,201.14,0.03781971]
[1756733353720,109.27,201.15,201.14,0.03781971]
[1756733355418,112.54238389,201.15,201.14,0.03781971]
[1756733356818,5.76238389,201.15,201.14,0.03781971]
[1756733357019,128.89,201.15,201.14,0.03781971]
[1756733358321,128.39,201.15,201.14,0.03781971]
[1756733359225,131.16238389,201.15,201.14,0.03781971]
[1756733360626,128.39,201.15,201.14,0.03781971]
[1756733362528,125.9,201.15,201.14,0.03781971]
[1756733362730,2.49,201.2,201.14,0.03781971]
[1756733362923,2.49,201.18,201.14,0.03781971]